bitfinex/quotes_BTCUSD_20250615
["timestamp","ask_amount","ask_price","bid_price","bid_amount"]
[1749989133155,0.19674581,105140.0,105130.0,0.42150366]
[1749989133501,0.2062563,105140.0,105130.0,0.45007089]
[1749989133711,0.21576697,105140.0,105130.0,0.42150366]
[1749989133913,0.21576688,105140.0,105130.0,0.45007089]
[1749989134591,0.22527764,105140.0,105130.0,0.45007089]
[1749989134972,0.22527764,105140.0,105130.0,0.42150366]
[1749989135182,0.22527755,105140.0,105130.0,0.36858283]
[1749989135798,0.21576688,105140.0,105130.0,0.36858283]
[1749989136539,0.19674581,105140.0,105130.0,0.36858283]
[1749989138193,0.18723541,105140.0,105130.0,0.36858283]
[1749989138395,0.1777251,105140.0,105130.0,0.36858283]
[1749989138555,0.18723541,105140.0,105130.0,0.36858283]
[1749989138910,0.1967459,105140.0,105130.0,0.36858283]
[1749989139704,0.0423059,105140.0,105130.0,0.36858283]
[1749989139900,0.18723541,105140.0,105130.0,0.36858283]
[1749989141852,0.03279541,105140.0,105130.0,0.43112784]
[1749989141996,0.18723541,105140.0,105130.0,0.43112784]
[1749989143714,0.01387625,105150.0,105140.0,0.25135484]
[1749989143939,0.16891781,105150.0,105140.0,0.25135484]
[1749989144147,0.17842749,105150.0,105140.0,0.25135484]
[1749989144354,0.16891781,105150.0,105140.0,0.25135484]
[1749989144982,0.18142749,105150.0,105140.0,0.25135484]
[1749989145184,0.18542749,105150.0,105140.0,0.25135484]
[1749989145745,0.18142749,105150.0,105140.0,0.25135484]
[1749989145955,0.19093735,105150.0,105140.0,0.25135484]
[1749989146152,0.18342749,105150.0,105140.0,0.25135484]
[1749989146381,0.18993735,105150.0,105140.0,0.25135484]
[1749989146838,0.02598749,105150.0,105140.0,0.25135484]
[1749989147030,0.18042749,105150.0,105140.0,0.25135484]
[1749989147177,0.19193735,105150.0,105140.0,0.25135484]
[1749989147780,0.2014473,105150.0,105140.0,0.25135484]
[1749989148303,0.17291781,105150.0,105140.0,0.25135484]
[1749989148510,0.22037893,105150.0,105140.0,0.25135484]
[1749989149734,0.22037884,105150.0,105140.0,0.25135484]
[1749989150054,0.2298887,105150.0,105140.0,0.25135484]
[1749989151735,0.22988861,105150.0,105140.0,0.25135484]
[1749989151994,0.43911306,105150.0,105140.0,0.21875493]
[1749989152222,0.20924444,105140.0,105130.0,0.00014254]
[1749989152461,0.24094444,105140.0,105130.0,0.00014254]
[1749989152711,0.76419541,105140.0,105130.0,0.00014254]
[1749989152958,0.73534444,105140.0,105130.0,0.00014254]
[1749989153162,0.96327483,105140.0,105130.0,0.00014254]
[1749989153394,0.92773542,105140.0,105130.0,0.00014254]
[1749989153616,0.93442372,105140.0,105130.0,0.00014254]
[1749989153834,0.93442375,105140.0,105130.0,0.00014254]
[1749989154297,0.93442374,105140.0,105130.0,0.00014254]
[1749989154518,0.92973542,105140.0,105130.0,0.00014254]
[1749989154746,0.93742365,105140.0,105130.0,0.00014254]
[1749989154967,0.93742363,105140.0,105130.0,0.00014254]
[1749989155196,0.93742365,105140.0,105130.0,0.00014254]
[1749989155410,0.93742362,105140.0,105130.0,0.00014254]
[1749989155635,0.93073542,105140.0,105130.0,0.00014254]
[1749989156075,0.84796251,105140.0,105130.0,0.00014254]
[1749989156297,0.84127435,105140.0,105130.0,0.00014254]
[1749989156519,0.84127436,105140.0,105130.0,0.00014254]
[1749989156988,0.84127437,105140.0,105130.0,0.00014254]
[1749989157693,0.84131437,105140.0,105130.0,0.00014254]
[1749989157908,0.8346262,105140.0,105130.0,0.00014254]
[1749989162077,0.70668444,105140.0,105130.0,0.00014254]
[1749989162512,0.70668444,105140.0,105130.0,0.01574254]
[1749989162722,0.55224444,105140.0,105130.0,0.03254254]
[1749989162956,0.70668444,105140.0,105130.0,0.03254254]
[1749989164569,0.70668444,105140.0,105130.0,0.00014254]
[1749989167425,0.71337214,105140.0,105130.0,0.00014254]
[1749989167636,0.71337214,105140.0,105130.0,0.01799934]
[1749989167851,0.71337222,105140.0,105130.0,0.01799934]
[1749989168085,0.71337222,105140.0,105130.0,0.01799933]
[1749989168314,0.71337223,105140.0,105130.0,0.01799933]
[1749989168537,0.70668444,105140.0,105130.0,0.0179994]
[1749989168749,0.70668444,105140.0,105130.0,0.00014254]
[1749989168959,0.71337222,105140.0,105130.0,0.0179994]
[1749989169137,0.70668444,105140.0,105130.0,0.0179994]
[1749989169602,0.71337219,105140.0,105130.0,0.00014254]
[1749989169824,0.70668444,105140.0,105130.0,0.00014254]
[1749989170031,0.7133722,105140.0,105130.0,0.00014254]
[1749989170239,0.71337217,105140.0,105130.0,0.01799954]
[1749989170445,0.71337222,105140.0,105130.0,0.01799954]
[1749989170851,0.70668444,105140.0,105130.0,0.01799954]
[1749989171069,0.70668444,105140.0,105130.0,0.01799956]
[1749989171273,0.71337225,105140.0,105130.0,0.01799956]
[1749989171677,0.70668444,105140.0,105130.0,0.00014254]
[1749989172052,0.71337224,105140.0,105130.0,0.01799955]
[1749989172284,0.71337219,105140.0,105130.0,0.01799963]
[1749989172740,0.70668444,105140.0,105130.0,0.01799963]
[1749989172863,0.71337232,105140.0,105130.0,0.01799962]
[1749989173064,0.71337232,105140.0,105130.0,0.00014254]
[1749989173065,0.70668444,105140.0,105130.0,0.00014254]
[1749989173265,0.70668444,105140.0,105130.0,0.01799964]
[1749989173526,0.71337102,105140.0,105130.0,0.00014254]
[1749989173730,0.71337097,105140.0,105130.0,0.00014254]
[1749989173891,0.71337098,105140.0,105130.0,0.00014254]
[1749989174299,0.50695103,105140.0,105130.0,0.00014254]
[1749989174658,0.51363758,105140.0,105130.0,0.01799598]
[1749989174875,0.50695103,105140.0,105130.0,0.01799598]
[1749989175079,0.70386014,105140.0,105130.0,0.01799598]
[1749989175518,0.70386015,105140.0,105130.0,0.01799598]
[1749989175774,0.70386015,105140.0,105130.0,0.00014254]
[1749989175976,0.70386011,105140.0,105130.0,0.00014254]
[1749989176185,0.69717359,105140.0,105130.0,0.01799598]
[1749989176390,0.70386011,105140.0,105130.0,0.00014254]
[1749989176589,0.69717359,105140.0,105130.0,0.01799598]
[1749989176794,0.7038601,105140.0,105130.0,0.01799598]
[1749989177014,0.70386014,105140.0,105130.0,0.01799598]
[1749989177220,0.70386015,105140.0,105130.0,0.01799598]
[1749989177425,0.54942011,105140.0,105130.0,0.01799598]
[1749989177646,0.70386011,105140.0,105130.0,0.01799598]
[1749989178052,0.69717359,105140.0,105130.0,0.01799598]
[1749989178262,0.70386015,105140.0,105130.0,0.01799598]
[1749989178897,0.70386015,105140.0,105130.0,0.00014254]
[1749989179104,0.70386016,105140.0,105130.0,0.00014254]
[1749989179321,0.79332281,105140.0,105130.0,0.00014254]
[1749989179565,0.81002281,105140.0,105130.0,0.01799598]
[1749989179783,0.81670939,105140.0,105130.0,0.01799618]
[1749989179989,0.71387359,105140.0,105130.0,0.01799622]
[1749989180618,0.7205602,105140.0,105130.0,0.01799622]
[1749989180838,0.70386016,105140.0,105130.0,0.01799613]
[1749989181052,0.70386014,105140.0,105130.0,0.00014254]
[1749989181286,0.54942013,105140.0,105130.0,0.01799606]
[1749989181515,0.70382018,105140.0,105130.0,0.00014254]
[1749989181733,0.69713359,105140.0,105130.0,0.017996]
[1749989181960,0.70382025,105140.0,105130.0,0.0179959]
[1749989182215,0.70382015,105140.0,105130.0,0.01799581]
[1749989182436,0.71882013,105140.0,105130.0,0.00014254]
[1749989182617,0.71882018,105140.0,105130.0,0.01799626]
[1749989182872,0.71882013,105140.0,105130.0,0.01799626]
[1749989183057,0.71882013,105140.0,105130.0,0.01799629]
[1749989183276,0.71213359,105140.0,105130.0,0.01799629]
[1749989183506,0.71882012,105140.0,105130.0,0.00014254]
[1749989183709,0.69713359,105140.0,105130.0,0.01799629]
[1749989184149,0.70382012,105140.0,105130.0,0.01799629]
[1749989184355,0.73233013,105140.0,105130.0,0.01799626]
[1749989184532,0.73233013,105140.0,105130.0,0.01799623]
[1749989184734,0.73233019,105140.0,105130.0,0.00014254]
[1749989184964,0.72564355,105140.0,105130.0,0.00014254]
[1749989185184,0.73233006,105140.0,105130.0,0.01799622]
[1749989185442,0.57793005,105140.0,105130.0,0.00014254]
[1749989185658,0.73233017,105140.0,105130.0,0.04839572]
[1749989185870,0.7323302,105140.0,105130.0,0.04839572]
[1749989186077,0.72564355,105140.0,105130.0,0.0483958]
[1749989186256,0.72564355,105140.0,105130.0,0.03054254]
[1749989186740,0.72564355,105140.0,105130.0,0.04839581]
[1749989186965,0.72564355,105140.0,105130.0,0.04839579]
[1749989187233,0.72564355,105140.0,105130.0,0.04839568]
[1749989187413,0.72564355,105140.0,105130.0,0.03054254]
[1749989187646,0.57793024,105140.0,105130.0,0.04839569]
[1749989187852,0.73233161,105140.0,105130.0,0.04839928]
[1749989188058,0.73233161,105140.0,105130.0,0.0483993]
[1749989188059,0.73233168,105140.0,105130.0,0.0483993]
[1749989188266,0.73233168,105140.0,105130.0,0.04839917]
[1749989188490,0.70382162,105140.0,105130.0,0.04839917]
[1749989188705,0.70382162,105140.0,105130.0,0.04839909]
[1749989188909,0.70382159,105140.0,105130.0,0.03054254]
[1749989189115,0.70382163,105140.0,105130.0,0.03054254]
[1749989189323,0.70382162,105140.0,105130.0,0.03054254]
[1749989189531,0.69713359,105140.0,105130.0,0.04839918]
[1749989189742,0.70382166,105140.0,105130.0,0.04839918]
[1749989189959,0.73233155,105140.0,105130.0,0.0483994]
[1749989190170,0.73233154,105140.0,105130.0,0.04839943]
[1749989190376,0.73233152,105140.0,105130.0,0.04839969]
[1749989190587,0.72564355,105140.0,105130.0,0.03054254]
[1749989190831,0.73233151,105140.0,105130.0,0.03054254]
[1749989191077,0.73233152,105140.0,105130.0,0.04839959]
[1749989191341,0.73233151,105140.0,105130.0,0.04839934]
[1749989191560,0.91803453,105140.0,105130.0,0.00014254]
[1749989191791,0.97898507,105140.0,105130.0,0.00014254]
[1749989192016,0.95702227,105140.0,105130.0,0.01799957]
[1749989192249,0.95702227,105140.0,105130.0,0.01799964]
[1749989192250,0.95702224,105140.0,105130.0,0.01799964]
[1749989192475,0.95702228,105140.0,105130.0,0.00014254]
[1749989192747,0.95702231,105140.0,105130.0,0.00014254]
[1749989192974,0.95702228,105140.0,105130.0,0.01799958]
[1749989193198,0.95702224,105140.0,105130.0,0.01800012]
[1749989193426,0.95702224,105140.0,105130.0,0.00014254]
[1749989193896,0.95033453,105140.0,105130.0,0.00014254]
[1749989194111,0.95702219,105140.0,105130.0,0.01800012]
[1749989194318,0.95702219,105140.0,105130.0,0.00014254]
[1749989194529,0.95033453,105140.0,105130.0,0.01800012]
[1749989194756,0.99498938,105140.0,105130.0,0.00014254]
[1749989195185,0.99498917,105140.0,105130.0,0.00014254]
[1749989195365,0.98830172,105140.0,105130.0,0.00014254]
[1749989195606,0.99498902,105140.0,105130.0,0.00014254]
[1749989195822,0.98830172,105140.0,105130.0,0.00014254]
[1749989196245,0.98630172,105140.0,105130.0,0.00014254]
[1749989196454,0.99298917,105140.0,105130.0,0.00014254]
[1749989196675,0.99030172,105140.0,105130.0,0.00014254]
[1749989197066,0.98530172,105140.0,105130.0,0.00014254]
[1749989197216,0.99198913,105140.0,105130.0,0.00014254]
[1749989197423,0.99430172,105140.0,105130.0,0.00114254]
[1749989197625,1.00098918,105140.0,105130.0,0.00114254]
[1749989197838,0.99430172,105140.0,105130.0,0.00114254]
[1749989198049,1.00098913,105140.0,105130.0,0.00114254]
[1749989198434,1.00098916,105140.0,105130.0,0.00114254]
[1749989198706,0.96579176,105140.0,105130.0,0.00114254]
[1749989198918,0.9724791,105140.0,105130.0,0.00114254]
[1749989199102,0.96579176,105140.0,105130.0,0.00114254]
[1749989199348,1.01552721,105140.0,105110.0,0.0324]
[1749989199540,0.54928398,105120.0,105110.0,0.03244747]
[1749989199758,0.80661276,105120.0,105110.0,4.747e-05]
[1749989199970,0.80661251,105120.0,105110.0,0.03310705]
[1749989200170,0.80661266,105120.0,105110.0,0.04890705]
[1749989200523,0.80661264,105120.0,105110.0,0.04990735]
[1749989200722,0.80661264,105120.0,105110.0,0.04890736]
[1749989200723,0.79992574,105120.0,105110.0,0.04890736]
[1749989200927,0.80661264,105120.0,105110.0,0.04890741]
[1749989201131,0.80661262,105120.0,105110.0,0.04890742]
[1749989201309,0.79992574,105120.0,105110.0,0.04890742]
[1749989201520,0.80661261,105120.0,105110.0,0.03104747]
[1749989201720,0.80661261,105120.0,105110.0,0.04890743]
[1749989201926,0.79992574,105120.0,105110.0,0.04890744]
[1749989202145,0.80661269,105120.0,105110.0,0.03104747]
[1749989202359,0.8066127,105120.0,105110.0,0.03104747]
[1749989202591,0.89607496,105120.0,105110.0,0.03104747]
[1749989203045,0.90276182,105120.0,105110.0,0.04890746]
[1749989203663,0.90276195,105120.0,105110.0,0.03104747]
[1749989203871,0.89607496,105120.0,105110.0,0.04890778]
[1749989204087,0.90276195,105120.0,105110.0,0.0489077]
[1749989204291,0.80661279,105120.0,105110.0,0.03104747]
[1749989204501,0.65221283,105120.0,105110.0,0.03104747]
[1749989204715,0.80661277,105120.0,105110.0,0.04890754]
[1749989204921,0.80661281,105120.0,105110.0,0.03104747]
[1749989205137,0.8066128,105120.0,105110.0,0.04890719]
[1749989205572,0.80661279,105120.0,105110.0,0.04890719]
[1749989205784,0.80661273,105120.0,105110.0,0.04890719]
[1749989205994,0.79992574,105120.0,105110.0,0.04890724]
[1749989206200,0.80661269,105120.0,105110.0,0.03104747]
[1749989206953,0.80661274,105120.0,105110.0,0.04890725]
[1749989207188,0.80661276,105120.0,105110.0,0.04890725]
[1749989207396,0.65221276,105120.0,105110.0,0.04890731]
[1749989207613,0.80661276,105120.0,105110.0,0.0489073]
[1749989207841,0.80661276,105120.0,105110.0,0.04890728]
[1749989208070,0.8066127,105120.0,105110.0,0.04890728]
[1749989208273,0.80661269,105120.0,105110.0,0.04890728]
[1749989208487,0.80661269,105120.0,105110.0,0.04890726]
[1749989208724,0.80661272,105120.0,105110.0,0.03104747]
[1749989208957,0.90276194,105120.0,105110.0,0.04890726]
[1749989209161,0.89607496,105120.0,105110.0,0.03104747]
[1749989209367,0.79992574,105120.0,105110.0,0.04885291]
[1749989209577,0.64552574,105120.0,105110.0,0.04885292]
[1749989209822,0.79992574,105120.0,105110.0,0.04885287]
[1749989210052,0.79992574,105120.0,105110.0,0.03104747]
[1749989210332,0.79992574,105120.0,105110.0,0.0488529]
[1749989210566,0.54928398,105120.0,105110.0,0.04885291]
[1749989210800,0.70368398,105120.0,105110.0,0.04885285]
[1749989211020,0.70368398,105120.0,105110.0,0.04885283]
[1749989212502,0.70368398,105120.0,105110.0,0.03104747]
[1749989212733,0.70368398,105120.0,105110.0,0.04885283]
[1749989213417,0.70368398,105120.0,105110.0,0.03104747]
[1749989213634,0.70368398,105120.0,105110.0,0.04885283]
[1749989214515,0.70368398,105120.0,105110.0,0.03104747]
[1749989214730,0.70368398,105120.0,105110.0,0.04885283]
[1749989216432,0.70368398,105120.0,105110.0,0.03104747]
[1749989216607,0.70368398,105120.0,105110.0,0.04885283]
[1749989216782,0.70368398,105120.0,105110.0,0.03104747]
[1749989217386,0.70368398,105120.0,105110.0,0.04885283]
[1749989217588,0.70368398,105120.0,105110.0,0.03104747]
[1749989217994,0.70368398,105120.0,105110.0,0.04885283]
[1749989218161,0.70368398,105120.0,105110.0,0.03104747]
[1749989218629,0.70368398,105120.0,105110.0,0.04885283]
[1749989219054,0.70368398,105120.0,105110.0,0.03104747]
[1749989219466,0.70368398,105120.0,105110.0,0.04885253]
[1749989219696,0.70368398,105120.0,105110.0,0.0488524]
[1749989219878,0.70368398,105120.0,105110.0,0.04885235]
[1749989220118,0.70368398,105120.0,105110.0,0.03104747]
[1749989220322,0.70368398,105120.0,105110.0,0.04885235]
[1749989220770,0.70368398,105120.0,105110.0,0.04885253]
[1749989220983,0.70368398,105120.0,105110.0,0.0488524]
[1749989221401,0.70368398,105120.0,105110.0,0.03104747]
[1749989221612,0.71037085,105120.0,105110.0,0.03104747]
[1749989221846,0.71037089,105120.0,105110.0,0.04890685]
[1749989222060,0.71037088,105120.0,105110.0,0.03104747]
[1749989222266,0.70368398,105120.0,105110.0,0.03104747]
[1749989222475,0.70368398,105120.0,105110.0,0.0489069]
[1749989222901,0.54928398,105120.0,105110.0,0.0489069]
[1749989223130,0.6941715,105120.0,105110.0,0.04890671]
[1749989223371,0.77147343,105120.0,105110.0,0.04890671]
[1749989223584,0.77816035,105120.0,105110.0,0.04890662]
[1749989223812,0.62376044,105120.0,105110.0,0.23083816]
[1749989224036,0.6941715,105120.0,105110.0,0.24869725]
[1749989224462,0.5397715,105120.0,105110.0,0.24869725]
[1749989224690,0.6941715,105120.0,105110.0,0.26772435]
[1749989224908,0.6941715,105120.0,105110.0,0.27723778]
[1749989225113,0.6941715,105120.0,105110.0,0.27723786]
[1749989225326,0.6941715,105120.0,105110.0,0.27723754]
[1749989225536,0.6941715,105120.0,105110.0,0.27723761]
[1749989225728,0.6941715,105120.0,105110.0,0.27723759]
[1749989225964,0.6941715,105120.0,105110.0,0.27723753]
[1749989226144,0.6941715,105120.0,105110.0,0.27723754]
[1749989226349,0.5397715,105120.0,105110.0,0.25937905]
[1749989226566,0.5397715,105120.0,105110.0,0.27723754]
[1749989226769,0.6941715,105120.0,105110.0,0.27723754]
[1749989226970,0.6941715,105120.0,105110.0,0.27723758]
[1749989227203,0.6941715,105120.0,105110.0,0.25937905]
[1749989227404,0.6941715,105120.0,105110.0,0.2772376]
[1749989228220,0.6941715,105120.0,105110.0,0.2772373]
[1749989228434,0.34465875,105120.0,105110.0,0.26772393]
[1749989228644,0.3541715,105120.0,105110.0,0.26772393]
[1749989228846,0.3541715,105120.0,105110.0,0.26772412]
[1749989229053,0.3541715,105120.0,105110.0,0.24986557]
[1749989229259,0.3541715,105120.0,105110.0,0.26772418]
[1749989229688,0.3541715,105120.0,105110.0,0.24986557]
[1749989229889,0.3541715,105120.0,105110.0,0.27723755]
[1749989230092,0.3541715,105120.0,105110.0,0.27723754]
[1749989230914,0.3541715,105120.0,105110.0,0.27723748]
[1749989231129,0.3541715,105120.0,105110.0,0.30708378]
[1749989231535,0.6941715,105120.0,105110.0,0.27723749]
[1749989232154,0.5397715,105120.0,105110.0,0.25937914]
[1749989232376,0.6941715,105120.0,105110.0,0.27723749]
[1749989232788,0.6941715,105120.0,105110.0,0.25937914]
[1749989232987,0.6941715,105120.0,105110.0,0.27723749]
[1749989233321,0.6941715,105120.0,105110.0,0.25937914]
[1749989233530,0.6941715,105120.0,105110.0,0.27723749]
[1749989234804,0.6941715,105120.0,105110.0,0.25937914]
[1749989235043,0.6941715,105120.0,105110.0,0.27723749]
[1749989235752,0.6941715,105120.0,105110.0,0.27723756]
[1749989235953,0.6941715,105120.0,105110.0,0.28558262]
[1749989236720,0.6941715,105120.0,105110.0,0.27723756]
[1749989237390,0.5397715,105120.0,105110.0,0.295096]
[1749989237653,0.6941315,105120.0,105110.0,0.29509606]
[1749989237902,0.6941315,105120.0,105110.0,0.29509608]
[1749989238127,0.6941315,105120.0,105110.0,0.29509601]
[1749989238825,0.6941315,105120.0,105110.0,0.27723756]
[1749989238826,0.71693801,105120.0,105110.0,0.27723756]
[1749989239287,0.71693801,105120.0,105110.0,0.30460967]
[1749989239571,0.71693801,105120.0,105110.0,0.28675104]
[1749989239806,0.71693801,105120.0,105110.0,0.3046096]
[1749989240018,0.71693801,105120.0,105110.0,0.28675104]
[1749989240233,0.71693801,105120.0,105110.0,0.30460949]
[1749989240443,0.71693801,105120.0,105110.0,0.28675104]
[1749989240654,0.71693801,105120.0,105110.0,0.30460938]
[1749989241127,0.65872723,105120.0,105110.0,0.27606872]
[1749989241346,0.71693801,105120.0,105110.0,0.2760688]
[1749989241565,0.56257801,105120.0,105110.0,0.27606894]
[1749989241787,0.70774526,105120.0,105110.0,0.27606894]
[1749989242011,0.70774526,105120.0,105110.0,0.25821033]
[1749989242466,0.70774526,105120.0,105110.0,0.24869658]
[1749989242686,0.70774526,105120.0,105110.0,0.06676466]
[1749989242899,0.70774526,105120.0,105110.0,0.06676489]
[1749989243111,0.70774526,105120.0,105110.0,0.06676486]
[1749989243320,0.70774526,105120.0,105110.0,0.04890589]
[1749989243531,0.70774526,105120.0,105110.0,0.07627869]
[1749989243756,0.70774526,105120.0,105110.0,0.05841973]
[1749989243969,0.70774526,105120.0,105110.0,0.07627862]
[1749989244180,0.70774526,105120.0,105110.0,0.07627863]
[1749989244388,0.70774526,105120.0,105110.0,0.05841973]
[1749989244835,0.70774526,105120.0,105110.0,0.07627863]
[1749989245256,0.70774526,105120.0,105110.0,0.05841973]
[1749989245470,0.80389448,105120.0,105110.0,0.03576483]
[1749989245692,0.80389448,105120.0,105110.0,0.03576502]
[1749989246137,0.64921448,105120.0,105110.0,0.01790589]
[1749989246365,0.80389448,105120.0,105110.0,0.03576527]
[1749989246582,0.6953186,105120.0,105110.0,0.01790589]
[1749989247251,0.70200697,105120.0,105110.0,0.03576527]
[1749989247464,0.6953186,105120.0,105110.0,0.04950589]
[1749989248105,0.6953186,105120.0,105110.0,0.06736508]
[1749989248781,0.6953186,105120.0,105110.0,0.06736512]
[1749989249002,0.6953186,105120.0,105110.0,0.04950589]
[1749989249482,0.6953186,105120.0,105110.0,0.06736525]
[1749989249713,0.6953186,105120.0,105110.0,0.04950589]
[1749989249941,0.70200695,105120.0,105110.0,0.04950589]
[1749989250168,0.70200697,105120.0,105110.0,0.06736533]
[1749989250399,0.6953186,105120.0,105110.0,0.04950589]
[1749989250864,0.79815616,105120.0,105110.0,0.04950589]
[1749989251046,0.79146782,105120.0,105110.0,0.06736539]
[1749989251283,0.79146782,105120.0,105110.0,0.06736546]
[1749989251515,0.70200703,105120.0,105110.0,0.04950589]
[1749989251762,0.6953186,105120.0,105110.0,0.06736547]
[1749989252024,0.6953186,105120.0,105110.0,0.06736539]
[1749989252229,0.6953186,105120.0,105110.0,0.06736541]
[1749989252418,0.70200682,105120.0,105110.0,0.06736543]
[1749989252869,0.6953186,105120.0,105110.0,0.06736541]
[1749989253191,0.6953186,105120.0,105110.0,0.0673654]
[1749989253679,0.7020063,105120.0,105110.0,0.04950589]
[1749989253872,0.6953186,105120.0,105110.0,0.06736542]
[1749989254093,0.79146782,105120.0,105110.0,0.06736542]
[1749989254492,0.79815554,105120.0,105110.0,0.06736541]
[1749989254927,0.79815553,105120.0,105110.0,0.06736541]
[1749989255130,0.79815554,105120.0,105110.0,0.04950589]
[1749989255333,0.79815553,105120.0,105110.0,0.04950589]
[1749989255767,0.79815554,105120.0,105110.0,0.06736532]
[1749989255982,0.79146782,105120.0,105110.0,0.06736537]
[1749989256225,0.79815552,105120.0,105110.0,0.06736538]
[1749989256432,0.79815552,105120.0,105110.0,0.04950589]
[1749989256634,0.79815556,105120.0,105110.0,0.04950589]
[1749989257065,0.79146782,105120.0,105110.0,0.06736537]
[1749989257293,0.79146782,105120.0,105110.0,0.04950589]
[1749989257506,0.79146782,105120.0,105110.0,0.06736535]
[1749989257713,0.79815556,105120.0,105110.0,0.06736535]
[1749989257898,0.79146782,105120.0,105110.0,0.04950589]
[1749989258161,0.79815555,105120.0,105110.0,0.06736531]
[1749989258371,0.7981555,105120.0,105110.0,0.06736531]
[1749989258576,0.79815518,105120.0,105110.0,0.06736531]
[1749989258811,0.79815511,105120.0,105110.0,0.0673653]
[1749989259016,0.7981551,105120.0,105110.0,0.06736536]
[1749989259225,0.7981551,105120.0,105110.0,0.06736537]
[1749989259649,0.7981551,105120.0,105110.0,0.04950589]
[1749989259864,0.79815509,105120.0,105110.0,0.04950589]
[1749989260088,0.79815515,105120.0,105110.0,0.06736542]
[1749989260296,0.7981551,105120.0,105110.0,0.06736542]
[1749989260559,0.7981551,105120.0,105110.0,0.06736539]
[1749989260762,0.70200588,105120.0,105110.0,0.06736536]
[1749989261183,0.6953186,105120.0,105110.0,0.0673653]
[1749989261392,0.70200587,105120.0,105110.0,0.04950589]
[1749989261574,0.6953186,105120.0,105110.0,0.04950589]
[1749989261837,0.70200586,105120.0,105110.0,0.06736529]
[1749989262045,0.70200586,105120.0,105110.0,0.06736531]
[1749989262231,0.70200589,105120.0,105110.0,0.04950589]
[1749989262435,0.70200588,105120.0,105110.0,0.04950589]
[1749989262641,0.6953186,105120.0,105110.0,0.06736532]
[1749989262846,0.70200588,105120.0,105110.0,0.06736533]
[1749989263081,0.6953186,105120.0,105110.0,0.04950589]
[1749989263292,0.7020059,105120.0,105110.0,0.04950589]
[1749989263506,0.6953186,105120.0,105110.0,0.06736519]
[1749989264211,0.70200589,105120.0,105110.0,0.04950589]
[1749989264430,0.7020059,105120.0,105110.0,0.04950589]
[1749989264615,0.6953186,105120.0,105110.0,0.04950589]
[1749989264789,0.7020059,105120.0,105110.0,0.06736529]
[1749989264989,0.6953186,105120.0,105110.0,0.06736526]
[1749989265190,0.6953186,105120.0,105110.0,0.04950589]
[1749989266102,0.6953186,105120.0,105110.0,0.06736518]
[1749989266304,0.55015144,105120.0,105110.0,0.24929649]
[1749989266483,0.57209067,105120.0,105110.0,0.32443389]
[1749989266687,0.72669067,105120.0,105110.0,0.33394718]
[1749989266889,0.72669067,105120.0,105110.0,0.33393847]
[1749989267105,0.72669067,105120.0,105110.0,0.33393825]
[1749989267307,0.72669067,105120.0,105110.0,0.31608789]
[1749989267508,0.72669067,105120.0,105110.0,0.33393824]
[1749989267739,0.72669067,105120.0,105110.0,0.28617361]
[1749989268168,0.72669067,105120.0,105110.0,0.26832326]
[1749989268369,0.72669067,105120.0,105110.0,0.28617361]
[1749989268760,0.72669067,105120.0,105110.0,0.27666032]
[1749989269004,0.72670044,105120.0,105110.0,0.25880997]
[1749989269200,0.72670044,105120.0,105110.0,0.27666032]
[1749989269653,0.72670044,105120.0,105110.0,0.25880997]
[1749989269853,0.72670044,105120.0,105110.0,0.27666032]
[1749989270478,0.72670044,105120.0,105110.0,0.25880997]
[1749989270813,0.72670044,105120.0,105110.0,0.27666032]
[1749989271021,0.72670044,105120.0,105110.0,0.29451067]
[1749989271228,0.72630485,105120.0,105110.0,0.27666032]
[1749989271432,0.72630485,105120.0,105110.0,0.29451067]
[1749989271694,0.72630485,105120.0,105110.0,0.27666032]
[1749989272110,0.72630485,105120.0,105110.0,0.29451067]
[1749989272321,0.72630485,105120.0,105110.0,0.27666032]
[1749989272734,0.72630485,105120.0,105110.0,0.29451878]
[1749989272941,0.72630485,105120.0,105110.0,0.27666032]
[1749989273188,0.72630485,105120.0,105110.0,0.29451878]
[1749989273359,0.72630485,105120.0,105110.0,0.27666032]
[1749989273773,0.72630485,105120.0,105110.0,0.29451878]
[1749989273984,0.72626485,105120.0,105110.0,0.29451878]
[1749989274812,0.72626485,105120.0,105110.0,0.27666032]
[1749989275021,0.72626485,105120.0,105110.0,0.29451878]
[1749989275668,0.72626485,105120.0,105110.0,0.27666032]
[1749989275873,0.72626485,105120.0,105110.0,0.29451878]
[1749989276294,0.72626485,105120.0,105110.0,0.27666032]
[1749989276506,0.72626485,105120.0,105110.0,0.29451878]
[1749989276717,0.72626485,105120.0,105110.0,0.27666032]
[1749989276940,0.72626485,105120.0,105110.0,0.29451878]
[1749989277659,0.57170485,105120.0,105110.0,0.27666032]
[1749989277908,0.72618485,105120.0,105110.0,0.29451878]
[1749989278343,0.72614485,105120.0,105110.0,0.29451878]
[1749989278557,0.72614485,105120.0,105110.0,0.27666032]
[1749989278786,0.72614485,105120.0,105110.0,0.29451878]
[1749989278996,0.72614485,105120.0,105110.0,0.27666032]
[1749989279264,0.72614485,105120.0,105110.0,0.29451878]
[1749989279688,0.72614485,105120.0,105110.0,0.27666032]
[1749989279896,0.72614485,105120.0,105110.0,0.30403217]
[1749989280520,0.72614485,105120.0,105110.0,0.28617371]
[1749989280766,0.72614485,105120.0,105110.0,0.30403217]
[1749989281187,0.57170485,105120.0,105110.0,0.30403217]
[1749989281395,0.72610485,105120.0,105110.0,0.30403217]
[1749989281631,0.57170485,105120.0,105110.0,0.30403217]
[1749989281847,0.72610485,105120.0,105110.0,0.30403217]
[1749989282282,0.57170485,105120.0,105110.0,0.30403217]
[1749989282493,0.72610485,105120.0,105110.0,0.30403217]
[1749989283203,0.72610485,105120.0,105110.0,0.28617371]
[1749989283402,0.72610485,105120.0,105110.0,0.30403217]
[1749989283809,0.72610485,105120.0,105110.0,0.29451878]
[1749989284979,0.72610485,105120.0,105110.0,0.27666032]
[1749989285220,0.72610485,105120.0,105110.0,0.29451878]
[1749989285936,0.72610485,105120.0,105110.0,0.29450474]
[1749989286151,0.72610485,105120.0,105110.0,0.27666032]
[1749989286332,0.72610485,105120.0,105110.0,0.29450474]
[1749989286745,0.72610485,105120.0,105110.0,0.27666032]
[1749989286988,0.72610485,105120.0,105110.0,0.29450474]
[1749989287383,0.72610485,105120.0,105110.0,0.29450464]
[1749989287838,0.72610485,105120.0,105110.0,0.27666032]
[1749989288035,0.72610485,105120.0,105110.0,0.29450462]
[1749989289387,0.72610485,105120.0,105110.0,0.28499114]
[1749989289621,0.71659228,105120.0,105110.0,0.26714684]
[1749989290096,0.71659228,105120.0,105110.0,0.28499138]
[1749989290326,0.70707944,105120.0,105110.0,0.06735624]
[1749989290808,0.70707944,105120.0,105110.0,0.08520102]
[1749989291050,0.70707944,105120.0,105110.0,0.06735624]
[1749989291295,0.70707944,105120.0,105110.0,0.08520102]
[1749989291531,0.80322866,105120.0,105110.0,0.08520118]
[1749989291729,0.70707944,105120.0,105110.0,0.06735624]
[1749989292164,0.70707944,105120.0,105110.0,0.08520107]
[1749989292411,0.70707944,105120.0,105110.0,0.0852013]
[1749989292645,0.70707944,105120.0,105110.0,0.08520125]
[1749989292856,0.70707944,105120.0,105110.0,0.06735624]
[1749989293094,0.70707944,105120.0,105110.0,0.08520134]